{"text_format":"1","workbook":"xlsx","n_sheets":4,"sheets":["Wstęp","Wydruk","CSV uczestnik","CSV podmiot"],"not_rendered":{"charts":0,"images":1,"macros":1,"external_links":3,"defined_names":36,"comments":0,"pivot_tables":0},"unopened":[],"bounds":{"document_bytes":16777216,"sheet_cells":100000,"rows_first":2000,"rows_last":500,"rows_between":2000,"halvings":0,"cell_chars":16384,"cell_head_chars":4096},"cells_cut":0,"cells_raw":0,"read":"whole","date_system":"1900"}

{"sheet":"Wstęp","index":0,"n_rows":110,"n_cols":8,"rows_kept":110,"cut":false,"hidden":false,"merged":[]}
[]
[]
[null,null,null,null,null,null,"Projekty","Numery projektu"]
[null,null,null,null,null,null,"Wsparcie studentów w zakresie podniesienia ich kompetencji i umiejętności","FERS.01.05-IP.08-0217/23"]
[]
[null,null,null,null,null,null,"Obecny status udziału w projekcie"]
[null,null,null,null,null,null,"Na rozpoczęcie projektu"]
[null,null,"Wybierz projekt FERS",null,null,null,"Na zakończenie projektu"]
[null,null,"Wsparcie studentów w zakresie podniesienia ich kompetencji i umiejętności"]
[null,null,null,null,null,null,"Status osoby na rynku pracy"]
[null,null,"Obecny status udziału w projekcie",null,null,null,"Osoba pracująca"]
[null,null,null,null,null,null,"Osoba bierna zawodowo"]
[]
[null,null,"Status osoby na rynku pracy w chwili przystępowania do projektu",null,null,null,"Obywatelstwo"]
[null,null,null,null,null,null,"Brak polskiego obywatelstwa – obywatel kraju UE"]
[null,null,null,null,null,null,"Brak polskiego obywatelstwa lub UE – obywatel kraju spoza UE/ bezpaństwowiec"]
[null,null,null,null,null,null,"Obywatelstwo polskie"]
[]
[null,null,"Liczba nieuzupełnionych komórek",null,null,null,"Wykształcenie"]
[null,null,35,null,null,null,"Ponadgimnazjalne (ISCED 3) lub policealne (ISCED 4)"]
[null,null,null,null,null,null,"Wyższe (ISCED 5–8)"]
[]
[null,null,null,null,null,null,"Osoba pracująca"]
[null,null,null,null,null,null,"osoba prowadząca działalność na własny rachunek"]
[null,null,null,null,null,null,"osoba pracująca w administracji rządowej"]
[null,null,null,null,null,null,"osoba pracująca w administracji samorządowej [z wyłączeniem szkół i placówek systemu oświaty]"]
[null,null,"bnr",null,null,null,"osoba pracująca w organizacji pozarządowej"]
[null,null,"Tak",null,null,null,"osoba pracująca w MMŚP"]
[null,null,"Nie",null,null,null,"osoba pracująca w dużym przedsiębiorstwie"]
[null,null,null,null,null,null,"osoba pracująca w podmiocie wykonującym działalność leczniczą"]
[null,null,"Płeć",null,null,null,"osoba pracująca w szkole lub placówce systemu oświaty (kadra pedagogiczna)"]
[null,null,"Kobieta",null,null,null,"osoba pracująca w szkole lub placówce systemu oświaty (kadra niepedagogiczna)"]
[null,null,"Mężczyzna",null,null,null,"osoba pracująca w szkole lub placówce systemu oświaty (kadra zarządzająca)"]
[null,null,null,null,null,null,"osoba pracująca na uczelni"]
[null,null,"Kraj (dostępne w systemie SM EFS)",null,null,null,"osoba pracująca w instytucie naukowym"]
[null,null,"Polska",null,null,null,"osoba pracująca w instytucie badawczym"]
[null,null,"Albania",null,null,null,"osoba pracująca w instytucie działającym w ramach Sieci Badawczej Łukasiewicz"]
[null,null,"Andora",null,null,null,"osoba pracująca w międzynarodowym instytucie naukowym"]
[null,null,"Austria",null,null,null,"osoba pracująca dla federacji podmiotów systemu szkolnictwa wyższego i nauki"]
[null,null,"Bangladesz",null,null,null,"osoba pracująca na rzecz państwowej osoby prawnej"]
[null,null,"Belgia",null,null,null,"Inne"]
[null,null,"Białoruś"]
[null,null,"Bośnia i Hercegowina",null,null,null,"Osoba bierna zawodowo"]
[null,null,"Bułgaria",null,null,null,"Osoba nieuczestnicząca w kształceniu lub szkoleniu"]
[null,null,"Chiny",null,null,null,"Osoba ucząca się/odbywająca kształcenie"]
[null,null,"Chorwacja",null,null,null,"Inne"]
[null,null,"Cypr"]
[null,null,"Czarnogóra",null,null,null,"Osoba bezrobotna"]
[null,null,"Czechy",null,null,null,"Osoba długotrwale bezrobotna"]
[null,null,"Dania",null,null,null,"Inne"]
[null,null,"Estonia"]
[null,null,"Finlandia",null,null,null,"Rodzaj wsparcia STUDENCI"]
[null,null,"Francja",null,null,null,"krajowe szkolenie/kurs"]
[null,null,"Grecja",null,null,null,"zagraniczne szkolenie/kurs"]
[null,null,"Gwatemala",null,null,null,"zagraniczna konferencja/seminarium"]
[null,null,"Hiszpania",null,null,null,"krajowa konferencja/seminarium"]
[null,null,"Holandia",null,null,null,"międzynarodowe konkursy i zawody"]
[null,null,"Indie",null,null,null,"zwrot kosztów przejazdu, zakwaterowania"]
[null,null,"Iran",null,null,null,"inne"]
[null,null,"Irlandia"]
[null,null,"Islandia",null,null,null,"Sytuacja osoby w momencie zakończenia udziału w projekcie"]
[null,null,"Izrael",null,null,null,"osoba podjęła kształcenie lub szkolenie"]
[null,null,"Japonia",null,null,null,"osoba uzyskała kwalifikacje"]
[null,null,"Kanada",null,null,null,"osoba nabyła kompetencje"]
[null,null,"Kazachstan",null,null,null,"osoba kontynuuje kształcenie"]
[null,null,"Korea Południowa",null,null,null,"osoba kontynuuje zatrudnienie"]
[null,null,"Liechtenstein",null,null,null,"osoba pracująca/ prowadząca działalność na własny rachunek po przerwie związanej z urodzeniem/ wychowaniem dziecka"]
[null,null,"Litwa",null,null,null,"osoba poszukująca pracy po przerwie związanej z urodzeniem/ wychowaniem dziecka"]
[null,null,"Luksemburg",null,null,null,"osoba poszukuje pracy"]
[null,null,"Łotwa",null,null,null,"osoba nie podjęła żadnej nowej aktywności po zakończeniu udziału w projekcie"]
[null,null,"Macedonia Północna",null,null,null,"sytuacja w trakcie monitorowania"]
[null,null,"Malta",null,null,null,"sytuacja społeczna osoby uległa poprawie"]
[null,null,"Mołdawia",null,null,null,"inne"]
[null,null,"Monako"]
[null,null,"Niemcy"]
[null,null,"Norwegia"]
[null,null,"Portugalia"]
[null,null,"Rosja"]
[null,null,"Rumunia"]
[null,null,"San Marino"]
[null,null,"Serbia"]
[null,null,"Słowacja"]
[null,null,"Słowenia"]
[null,null,"Stany Zjednoczone Ameryki"]
[null,null,"Szwajcaria"]
[null,null,"Szwecja"]
[null,null,"Tadżykistan"]
[null,null,"Ukraina"]
[null,null,"Watykan"]
[null,null,"Węgry"]
[null,null,"Wielka Brytania"]
[null,null,"Włochy"]
[]
[null,null,"Województwa"]
[null,null,"DOLNOŚLĄSKIE"]
[null,null,"KUJAWSKO-POMORSKIE"]
[null,null,"LUBELSKIE"]
[null,null,"LUBUSKIE"]
[null,null,"ŁÓDZKIE"]
[null,null,"MAŁOPOLSKIE"]
[null,null,"MAZOWIECKIE"]
[null,null,"OPOLSKIE"]
[null,null,"PODKARPACKIE"]
[null,null,"PODLASKIE"]
[null,null,"POMORSKIE"]
[null,null,"ŚLĄSKIE"]
[null,null,"ŚWIĘTOKRZYSKIE"]
[null,null,"WARMIŃSKO-MAZURSKIE"]
[null,null,"WIELKOPOLSKIE"]
[null,null,"ZACHODNIOPOMORSKIE"]

{"sheet":"Wydruk","index":1,"n_rows":201,"n_cols":3,"rows_kept":201,"cut":false,"hidden":false,"merged":[]}
[]
[]
[]
[]
[]
[]
[]
[]
[null,null,"Informacje o projekcie"]
[]
[]
[null,null,"Numer projektu"]
[null,null,{"$f":"IF(wstęp1=\"\",\"\",VLOOKUP(wstęp1,proj,2,FALSE))","v":"FERS.01.05-IP.08-0217/23"}]
[]
[null,null,"Numer umowy"]
[]
[]
[null,null,"Nazwa beneficjenta"]
[null,null,"Ministerstwo Nauki i Szkolnictwa Wyższego"]
[]
[null,null,"Nazwa uczelni"]
[]
[]
[null,null,"Tytuł projektu FERS"]
[null,null,"Wsparcie studentów w zakresie podniesienia ich kompetencji i umiejętności"]
[]
[null,null,"Nazwa realizowanego projektu przez uczelnię"]
[]
[]
[]
[null,null,"Dane podstawowe"]
[]
[]
[null,null,"Nazwa instytucji"]
[null,null,{"$f":"IF(C22=\"\",\"\",C22)","v":""}]
[]
[null,null,"NIP"]
[]
[]
[null,null,"brak NIP"]
[null,null,"Nie"]
[]
[null,null,"Typ instytucji"]
[null,null,"podmiot systemu szkolnictwa wyższego i nauki"]
[]
[null,null,"w tym"]
[null,null,"uczelnia"]
[]
[null,null,"Kraj"]
[null,null,"Polska"]
[]
[null,null,"Województwo"]
[]
[]
[null,null,"Powiat"]
[]
[]
[null,null,"Gmina"]
[]
[]
[null,null,"Miejscowość"]
[]
[]
[null,null,"Kod pocztowy"]
[]
[]
[null,null,"Obszar według stopnia urbanizacji (DEGURBA)"]
[]
[]
[null,null,"Telefon kontaktowy"]
[]
[]
[null,null,"Adres e-mail"]
[]
[]
[null,null,"Data rozpoczęcia udziału w projekcie"]
[]
[]
[null,null,"Data zakończenia udziału w projekcie"]
[]
[]
[]
[null,null,"Czy wsparciem zostali objęci pracownicy instytucji"]
[null,null,"Nie"]
[]
[null,null,"Zakres wsparcia"]
[]
[]
[null,null,"Rodzaj przyznanego wsparcia"]
[]
[]
[null,null,"w tym"]
[]
[]
[null,null,"Data rozpoczęcia udziału we wsparciu"]
[]
[]
[]
[null,null,"Dane uczestnika"]
[]
[null,null,"Obywatelstwo"]
[]
[]
[null,null,"Rodzaj uczestnika"]
[null,null,"Pracownik lub przedstawiciel instytucji/ podmiotu"]
[]
[null,null,"Nazwa instytucji"]
[null,null,{"$f":"IF(C22=\"\",\"\",C22)","v":""}]
[]
[null,null,"Imię"]
[]
[]
[null,null,"Nazwisko"]
[]
[]
[null,null,"PESEL/Inny identyfikator"]
[]
[]
[null,null,"brak PESEL"]
[]
[]
[null,null,"Płeć"]
[]
[]
[null,null,"Wiek w chwili przystąpienia do projektu"]
[]
[]
[null,null,"Wykształcenie"]
[]
[]
[null,null,"Kraj"]
[]
[]
[null,null,"Województwo"]
[]
[]
[null,null,"Powiat"]
[]
[]
[null,null,"Gmina"]
[]
[]
[null,null,"Miejscowość"]
[]
[]
[null,null,"Kod pocztowy"]
[]
[]
[null,null,"Obszar według stopnia urbanizacji (DEGURBA)"]
[]
[]
[null,null,"Telefon kontaktowy"]
[]
[]
[null,null,"Adres e-mail"]
[]
[]
[null,null,"Data rozpoczęcia udziału w projekcie"]
[]
[]
[null,null,"Data zakończenia udziału w projekcie"]
[]
[]
[]
[null,null,"Status osoby na rynku pracy w chwili przystępowania do projektu"]
[null,null,{"$f":"IF(wstęp3=\"\",\"\",wstęp3)","v":""}]
[]
[null,null,"w tym"]
[]
[]
[null,null,"Planowana data zakończenia edukacji w placówce edukacyjnej, w której skorzystano ze wsparcia"]
[]
[]
[]
[null,null,"Sytuacja osoby w momencie zakończenia udziału w projekcie"]
[]
[]
[]
[null,null,"Zakończenie udziału osoby w projekcie zgodnie z zaplanowaną dla niej ścieżką uczestnictwa"]
[]
[]
[]
[null,null,"Zakres wsparcia"]
[null,null,"szkolnictwo wyższe i nauka"]
[]
[null,null,"Rodzaj przyznanego wsparcia"]
[]
[]
[null,null,"w tym"]
[]
[]
[null,null,"Data rozpoczęcia udziału we wsparciu"]
[]
[]
[]
[]
[]
[]
[]
[null,null,"………………………………………………………………….."]
[null,null,"podpis uczestnika lub osoby uprawnionej"]

{"sheet":"CSV uczestnik","index":2,"n_rows":2,"n_cols":43,"rows_kept":2,"cut":false,"hidden":false,"merged":[]}
["Numer projektu","Obywatelstwo","Rodzaj uczestnika","Nazwa instytucji","Imię","Nazwisko","PESEL/Inny identyfikator","brak PESEL","Techniczny identyfikator uczestnika","Płeć","Wiek w chwili przystąpienia do projektu","Wykształcenie","Kraj","Województwo","Powiat","Gmina","Miejscowość","Kod pocztowy","Obszar według stopnia urbanizacji (DEGURBA)","Telefon kontaktowy","Adres e-mail","Data rozpoczęcia udziału w projekcie","Data zakończenia udziału w projekcie","Status osoby na rynku pracy w chwili przystępowania do projektu","w tym","Planowana data zakończenia edukacji w placówce edukacyjnej, w której skorzystano ze wsparcia","Sytuacja osoby w momencie zakończenia udziału w projekcie","Zakończenie udziału osoby w projekcie zgodnie z zaplanowaną dla niej ścieżką uczestnictwa","Zakres wsparcia","Rodzaj przyznanego wsparcia","w tym","Data rozpoczęcia udziału we wsparciu","Data założenia działalności gospodarczej","Osoba obcego pochodzenia","Obywatel państwa trzeciego","Osoba należąca do mniejszości narodowej lub etnicznej (w tym społeczności marginalizowane)","Osoba bezdomna lub dotknięta wykluczeniem z dostępu do mieszkań","Osoba z niepełnosprawnościami","Data dodania uczestnika","Użytkownik, który dodał uczestnika","Data ostatniej modyfikacji uczestnika","Użytkownik, który dokonał ostatniej modyfikacji uczestnika","Źródło danych o uczestniku"]
[{"$f":"Wydruk!C13","v":"FERS.01.05-IP.08-0217/23"},{"$f":"IF(Wydruk!C102=\"\",\"\",Wydruk!C102)","v":""},{"$f":"Wydruk!C105","v":"Pracownik lub przedstawiciel instytucji/ podmiotu"},{"$f":"Wydruk!C108","v":""},{"$f":"IF(Wydruk!C111=\"\",\"\",Wydruk!C111)","v":""},{"$f":"IF(Wydruk!C114=\"\",\"\",Wydruk!C114)","v":""},{"$f":"IF(Wydruk!C117=\"\",\"\",Wydruk!C117)","v":""},{"$f":"IF(Wydruk!C120=\"\",\"\",Wydruk!C120)","v":""},null,{"$f":"IF(Wydruk!C123=\"\",\"\",Wydruk!C123)","v":""},{"$f":"IF(Wydruk!C126=\"\",\"\",Wydruk!C126)","v":""},{"$f":"IF(Wydruk!C129=\"\",\"\",Wydruk!C129)","v":""},{"$f":"IF(Wydruk!C132=\"\",\"\",Wydruk!C132)","v":""},{"$f":"IF(Wydruk!C135=\"\",\"\",Wydruk!C135)","v":""},{"$f":"IF(Wydruk!C138=\"\",\"\",Wydruk!C138)","v":""},{"$f":"IF(Wydruk!C141=\"\",\"\",Wydruk!C141)","v":""},{"$f":"IF(Wydruk!C144=\"\",\"\",Wydruk!C144)","v":""},{"$f":"IF(Wydruk!C147=\"\",\"\",Wydruk!C147)","v":""},null,{"$f":"IF(Wydruk!C153=\"\",\"\",Wydruk!C153)","v":""},{"$f":"IF(Wydruk!C156=\"\",\"\",Wydruk!C156)","v":""},{"$f":"IF(Wydruk!C159=\"\",\"\",Wydruk!C159)","v":""},{"$f":"IF(Wydruk!C163=\"\",\"\",Wydruk!C163)","v":""},{"$f":"IF(Wydruk!C166=\"\",\"\",Wydruk!C166)","v":""},{"$f":"IF(Wydruk!C169=\"\",\"\",Wydruk!C169)","v":""},{"$f":"IF(Wydruk!C173=\"\",\"\",Wydruk!C173)","v":""},{"$f":"IF(Wydruk!C177=\"\",\"\",SUBSTITUTE(Wydruk!C177,CHAR(10),\"|\"))","v":""},{"$f":"IF(Wydruk!C181=\"\",\"\",Wydruk!C181)","v":""},"szkolnictwo wyższe i nauka",{"$f":"IF(Wydruk!C187=\"\",\"\",SUBSTITUTE(Wydruk!C187,CHAR(10),\"|\"))","v":""},null,{"$f":"IF(Wydruk!C193=\"\",\"\",Wydruk!C193)","v":""},"Nie dotyczy","Nie dotyczy","Nie dotyczy","Nie dotyczy","Nie dotyczy","Nie dotyczy","Nie dotyczy","Nie dotyczy","Nie dotyczy","Nie dotyczy","Nie dotyczy"]

{"sheet":"CSV podmiot","index":3,"n_rows":2,"n_cols":26,"rows_kept":2,"cut":false,"hidden":false,"merged":[]}
["Numer projektu","Nazwa instytucji","NIP","brak NIP","Typ instytucji","w tym","Kraj","Województwo","Powiat","Gmina","Miejscowość","Kod pocztowy","Obszar według stopnia urbanizacji (DEGURBA)","Telefon kontaktowy","Adres e-mail","Data rozpoczęcia udziału w projekcie","Data zakończenia udziału w projekcie","Czy wsparciem zostali objęci pracownicy instytucji","Zakres wsparcia","Rodzaj przyznanego wsparcia","w tym","Data rozpoczęcia udziału we wsparciu","Data dodania podmiotu","Użytkownik, który dodał podmiot","Data ostatniej modyfikacji podmiotu","Użytkownik, który dokonał ostatniej modyfikacji podmiotu"]
[{"$f":"Wydruk!C13","v":"FERS.01.05-IP.08-0217/23"},{"$f":"IF(Wydruk!C22=\"\",\"\",Wydruk!C22)","v":""},{"$f":"IF(Wydruk!C38=\"\",\"\",Wydruk!C38)","v":""},"Nie","podmiot systemu szkolnictwa wyższego i nauki","uczelnia","Polska",{"$f":"IF(Wydruk!C53=\"\",\"\",Wydruk!C53)","v":""},{"$f":"IF(Wydruk!C56=\"\",\"\",Wydruk!C56)","v":""},{"$f":"IF(Wydruk!C59=\"\",\"\",Wydruk!C59)","v":""},{"$f":"IF(Wydruk!C62=\"\",\"\",Wydruk!C62)","v":""},{"$f":"IF(Wydruk!C65=\"\",\"\",Wydruk!C65)","v":""},null,{"$f":"IF(Wydruk!C71=\"\",\"\",Wydruk!C71)","v":""},{"$f":"IF(Wydruk!C74=\"\",\"\",Wydruk!C74)","v":""},{"$f":"IF(Wydruk!C77=\"\",\"\",Wydruk!C77)","v":""},{"$f":"IF(Wydruk!C81=\"\",\"\",Wydruk!C81)","v":""},"Nie"]